[Event "Early-Titled-Tuesday-Blitz-February-13-2024"]
[Site "Chess.com"]
[Date "2024.02.13"]
[Round "1"]
[White "Mackster23"]
[Black "calin_dragomirescu"]
[Result "1-0"]
[WhiteElo "2684"]
[BlackElo "2348"]
[TimeControl "180+1"]
[EndTime "8:06:05 PST"]
[Termination "Mackster23 won by resignation"]

1. e4 {[%clk 0:03:00.9]} 1... g6 {[%clk 0:02:59.1]} 2. d4 {[%clk 0:03:00.7]}
2... Bg7 {[%clk 0:02:59.5]} 3. Nc3 {[%clk 0:03:01.3]} 3... d6 {[%clk 0:03:00]}
4. Be3 {[%clk 0:03:01.6]} 4... a6 {[%clk 0:03:00.3]} 5. Qd2 {[%clk 0:03:01.8]}
5... b5 {[%clk 0:03:00.9]} 6. O-O-O {[%clk 0:03:02]} 6... Bb7 {[%clk 0:03:00.7]}
7. f3 {[%clk 0:03:02.3]} 7... Nd7 {[%clk 0:03:00.6]} 8. h4 {[%clk 0:03:02.4]}
8... h5 {[%clk 0:03:00.4]} 9. Nh3 {[%clk 0:03:02.5]} 9... Rc8 {[%clk 0:02:59.2]}
10. Ng5 {[%clk 0:03:01.8]} 10... c5 {[%clk 0:02:59.8]} 11. dxc5 {[%clk
0:03:01.9]} 11... Nxc5 {[%clk 0:02:59.8]} 12. Bd4 {[%clk 0:03:01.8]} 12... Nf6
{[%clk 0:02:59.4]} 13. Qe3 {[%clk 0:02:30.3]} 13... O-O {[%clk 0:02:57.7]} 14.
e5 {[%clk 0:02:28.8]} 14... Nfd7 {[%clk 0:02:43.9]} 15. exd6 {[%clk 0:02:24.2]}
15... exd6 {[%clk 0:02:44]} 16. Bxg7 {[%clk 0:02:22.8]} 16... Kxg7 {[%clk
0:02:44.6]} 17. Rxd6 {[%clk 0:02:22.3]} 17... Qc7 {[%clk 0:02:30.3]} 18. Qd4+
{[%clk 0:02:17.8]} 18... Kg8 {[%clk 0:02:26.8]} 19. b4 {[%clk 0:01:18.8]} 19...
Na4 {[%clk 0:02:18]} 20. Rxd7 {[%clk 0:01:15.7]} 20... Qxc3 {[%clk 0:02:14.9]}
21. Qxc3 {[%clk 0:01:15.3]} 21... Nxc3 {[%clk 0:02:11.7]} 22. Rxb7 {[%clk
0:01:15]} 22... Nxa2+ {[%clk 0:02:12.4]} 23. Kb2 {[%clk 0:01:14]} 23... Nxb4
{[%clk 0:02:13]} 24. Bd3 {[%clk 0:01:05.1]} 24... Nxd3+ {[%clk 0:02:03.3]} 25.
cxd3 {[%clk 0:01:06]} 25... Rb8 {[%clk 0:01:58.3]} 26. Rxb8 {[%clk 0:01:04]}
26... Rxb8 {[%clk 0:01:59]} 27. Ra1 {[%clk 0:01:03.3]} 27... Rb6 {[%clk
0:01:58.1]} 28. Kb3 {[%clk 0:01:00.5]} 28... Rd6 {[%clk 0:01:57.4]} 29. Kc3
{[%clk 0:00:55.5]} 29... Kg7 {[%clk 0:01:55.8]} 30. Ne4 {[%clk 0:00:53.5]} 30...
Rc6+ {[%clk 0:01:55.6]} 31. Kb4 {[%clk 0:00:53.3]} 31... Rc2 {[%clk 0:01:47.7]}
32. g3 {[%clk 0:00:51.7]} 32... Rb2+ {[%clk 0:01:39.7]} 33. Kc3 {[%clk
0:00:48.8]} 33... Re2 {[%clk 0:01:33.7]} 34. Rxa6 {[%clk 0:00:47.3]} 34... Re3
{[%clk 0:01:34]} 35. f4 {[%clk 0:00:37.7]} 35... f5 {[%clk 0:01:30.3]} 36. Ra7+
{[%clk 0:00:36.4]} 36... Kf8 {[%clk 0:01:26.7]} 37. Ng5 {[%clk 0:00:34.6]} 37...
Rxg3 {[%clk 0:01:26.1]} 38. Kd4 {[%clk 0:00:33.3]} 38... Rg4 {[%clk 0:01:24.2]}
39. Ke5 {[%clk 0:00:33]} 39... Rxh4 {[%clk 0:01:22.8]} 40. Kf6 {[%clk
0:00:31.6]} 40... Ke8 {[%clk 0:01:22.2]} 41. Ne6 {[%clk 0:00:31.4]} 1-0

[Event "Early-Titled-Tuesday-Blitz-February-13-2024"]
[Site "Chess.com"]
[Date "2024.02.13"]
[Round "1"]
[White "Rud_Makarian"]
[Black "NovoselovRoman"]
[Result "1-0"]
[WhiteElo "3040"]
[BlackElo "2536"]
[TimeControl "180+1"]
[EndTime "8:06:06 PST"]
[Termination "Rud_Makarian won by resignation"]

1. d4 {[%clk 0:02:59.4]} 1... Nf6 {[%clk 0:02:58]} 2. c4 {[%clk 0:03:00.3]} 2...
e5 {[%clk 0:02:56.6]} 3. dxe5 {[%clk 0:03:00.2]} 3... Ng4 {[%clk 0:02:56.8]} 4.
e4 {[%clk 0:03:00]} 4... Nxe5 {[%clk 0:02:56.8]} 5. f4 {[%clk 0:02:55.1]} 5...
Nec6 {[%clk 0:02:56.4]} 6. Nc3 {[%clk 0:02:51]} 6... d6 {[%clk 0:02:53.3]} 7.
Qh5 {[%clk 0:02:50.2]} 7... Nd7 {[%clk 0:02:47.9]} 8. Bd3 {[%clk 0:02:39]} 8...
Be7 {[%clk 0:02:36.5]} 9. Qe2 {[%clk 0:02:32.8]} 9... Nc5 {[%clk 0:02:31.8]} 10.
Nf3 {[%clk 0:02:29.5]} 10... Nxd3+ {[%clk 0:02:24.2]} 11. Qxd3 {[%clk
0:02:28.6]} 11... O-O {[%clk 0:02:24.8]} 12. O-O {[%clk 0:02:28.1]} 12... a5
{[%clk 0:01:47.9]} 13. Be3 {[%clk 0:02:25.5]} 13... Bf6 {[%clk 0:01:41]} 14. Nd4
{[%clk 0:02:22.2]} 14... Nxd4 {[%clk 0:01:32.1]} 15. Bxd4 {[%clk 0:02:23.1]}
15... Bxd4+ {[%clk 0:01:29.5]} 16. Qxd4 {[%clk 0:02:24]} 16... Bd7 {[%clk
0:01:27.6]} 17. b3 {[%clk 0:02:16.4]} 17... Re8 {[%clk 0:01:25.4]} 18. Rae1
{[%clk 0:02:15.7]} 18... a4 {[%clk 0:01:22.3]} 19. b4 {[%clk 0:02:10.9]} 19...
a3 {[%clk 0:01:19.8]} 20. Nd5 {[%clk 0:02:00.1]} 20... Bc6 {[%clk 0:01:12.1]}
21. Nc3 {[%clk 0:01:53.9]} 21... b6 {[%clk 0:01:09.5]} 22. Re3 {[%clk
0:01:48.1]} 22... Re6 {[%clk 0:00:48.1]} 23. Nd5 {[%clk 0:01:44.6]} 23... Qd7
{[%clk 0:00:22]} 24. Rg3 {[%clk 0:01:39]} 24... Rg6 {[%clk 0:00:09.1]} 25. Rxg6
{[%clk 0:01:26.3]} 25... hxg6 {[%clk 0:00:10]} 26. f5 {[%clk 0:01:21.7]} 26...
Bxd5 {[%clk 0:00:08]} 27. Qxd5 {[%clk 0:01:17.2]} 27... gxf5 {[%clk 0:00:08.9]}
28. Qxa8+ {[%clk 0:01:16.7]} 1-0

[Event "Early-Titled-Tuesday-Blitz-February-13-2024"]
[Site "Chess.com"]
[Date "2024.02.13"]
[Round "1"]
[White "viktorskliarov"]
[Black "giovannibrandao7"]
[Result "1-0"]
[WhiteElo "2605"]
[BlackElo "2231"]
[TimeControl "180+1"]
[EndTime "8:06:10 PST"]
[Termination "viktorskliarov won by resignation"]

1. e4 {[%clk 0:03:00.9]} 1... c5 {[%clk 0:02:59.7]} 2. Nf3 {[%clk 0:02:58.5]}
2... d6 {[%clk 0:03:00]} 3. d4 {[%clk 0:02:58]} 3... cxd4 {[%clk 0:03:00.9]} 4.
Qxd4 {[%clk 0:02:57.4]} 4... Nc6 {[%clk 0:02:59]} 5. Bb5 {[%clk 0:02:57]} 5...
Bd7 {[%clk 0:02:59.4]} 6. Bxc6 {[%clk 0:02:57.4]} 6... Bxc6 {[%clk 0:03:00.3]}
7. Nc3 {[%clk 0:02:58]} 7... e6 {[%clk 0:03:00.5]} 8. Bg5 {[%clk 0:02:57.7]}
8... Nf6 {[%clk 0:02:57.5]} 9. O-O-O {[%clk 0:02:57.3]} 9... Be7 {[%clk
0:02:57.5]} 10. Rhe1 {[%clk 0:02:56.4]} 10... Qc7 {[%clk 0:02:40.8]} 11. Bxf6
{[%clk 0:02:40.7]} 11... gxf6 {[%clk 0:02:34.5]} 12. Nd5 {[%clk 0:02:40.2]}
12... Bxd5 {[%clk 0:02:23.2]} 13. exd5 {[%clk 0:02:40]} 13... e5 {[%clk
0:02:23.8]} 14. Qe4 {[%clk 0:02:32.5]} 14... O-O-O {[%clk 0:02:11.5]} 15. Re3
{[%clk 0:02:15.3]} 15... Kb8 {[%clk 0:02:09.9]} 16. Ra3 {[%clk 0:01:41.8]} 16...
Qd7 {[%clk 0:02:03]} 17. Nh4 {[%clk 0:01:37.5]} 17... Rhg8 {[%clk 0:01:33.1]}
18. Nf5 {[%clk 0:01:35.7]} 18... Rg5 {[%clk 0:01:19.8]} 19. g4 {[%clk
0:01:35.5]} 19... h5 {[%clk 0:01:15.1]} 20. f3 {[%clk 0:01:33.8]} 20... hxg4
{[%clk 0:01:14.5]} 21. fxg4 {[%clk 0:01:34.7]} 21... Rgg8 {[%clk 0:01:06.2]} 22.
Rdd3 {[%clk 0:01:13.4]} 22... Rc8 {[%clk 0:00:59.8]} 23. Rac3 {[%clk 0:01:07.2]}
23... Rxc3 {[%clk 0:00:57.6]} 24. Rxc3 {[%clk 0:01:07.1]} 24... Bd8 {[%clk
0:00:56.9]} 25. h4 {[%clk 0:01:01.4]} 25... Qb5 {[%clk 0:00:43.9]} 26. Qc4
{[%clk 0:00:44.6]} 26... Qxc4 {[%clk 0:00:34.1]} 27. Rxc4 {[%clk 0:00:45.5]}
27... Bc7 {[%clk 0:00:29.2]} 28. h5 {[%clk 0:00:43]} 1-0

[Event "Early-Titled-Tuesday-Blitz-February-13-2024"]
[Site "Chess.com"]
[Date "2024.02.13"]
[Round "1"]
[White "Klavdia_Nik"]
[Black "Statham_01"]
[Result "0-1"]
[WhiteElo "2130"]
[BlackElo "2577"]
[TimeControl "180+1"]
[EndTime "8:06:12 PST"]
[Termination "Statham_01 won on time"]

1. Nf3 {[%clk 0:02:56]} 1... d5 {[%clk 0:02:56.7]} 2. c4 {[%clk 0:02:50.7]} 2...
e6 {[%clk 0:02:54.8]} 3. b3 {[%clk 0:02:44.9]} 3... Nf6 {[%clk 0:02:54.7]} 4.
Bb2 {[%clk 0:02:35.3]} 4... c5 {[%clk 0:02:54]} 5. g3 {[%clk 0:02:28.5]} 5...
Nc6 {[%clk 0:02:52.5]} 6. Bg2 {[%clk 0:02:18]} 6... d4 {[%clk 0:02:52.8]} 7. O-O
{[%clk 0:02:14.1]} 7... e5 {[%clk 0:02:53.1]} 8. d3 {[%clk 0:02:14.5]} 8... Bd6
{[%clk 0:02:51.6]} 9. a3 {[%clk 0:02:13.5]} 9... O-O {[%clk 0:02:49.4]} 10. b4
{[%clk 0:02:09.1]} 10... cxb4 {[%clk 0:02:50.3]} 11. axb4 {[%clk 0:02:10]} 11...
Bxb4 {[%clk 0:02:43.1]} 12. Ba3 {[%clk 0:02:08.2]} 12... Bxa3 {[%clk 0:02:37.1]}
13. Nxa3 {[%clk 0:02:07.6]} 13... Qe7 {[%clk 0:02:35.5]} 14. Nd2 {[%clk
0:01:59]} 14... Bg4 {[%clk 0:02:27.2]} 15. Re1 {[%clk 0:01:50.9]} 15... Nb4
{[%clk 0:02:17.6]} 16. h3 {[%clk 0:01:32.7]} 16... Bh5 {[%clk 0:02:16.2]} 17. g4
{[%clk 0:01:33]} 17... Bg6 {[%clk 0:02:15.3]} 18. Nf3 {[%clk 0:01:14.4]} 18...
a5 {[%clk 0:02:06.2]} 19. Nh4 {[%clk 0:01:02.6]} 19... Rad8 {[%clk 0:01:51.5]}
20. Nxg6 {[%clk 0:00:57.3]} 20... fxg6 {[%clk 0:01:52.4]} 21. Nb5 {[%clk
0:00:52]} 21... b6 {[%clk 0:01:50]} 22. Qd2 {[%clk 0:00:19.5]} 22... h5 {[%clk
0:01:49.4]} 23. g5 {[%clk 0:00:17.1]} 23... Nh7 {[%clk 0:01:50]} 24. h4 {[%clk
0:00:17.4]} 24... Rf4 {[%clk 0:01:50.4]} 25. Be4 {[%clk 0:00:10.8]} 25... Rxh4
{[%clk 0:01:49.2]} 26. Bxg6 {[%clk 0:00:08.8]} 26... Rg4+ {[%clk 0:01:46.7]} 27.
Kf1 {[%clk 0:00:05.9]} 27... Nxg5 {[%clk 0:01:47.6]} 28. Bxh5 {[%clk 0:00:04.4]}
28... Rf4 {[%clk 0:01:35.8]} 29. Kg2 {[%clk 0:00:02.8]} 29... Rdf8 {[%clk
0:01:34]} 30. f3 {[%clk 0:00:02.9]} 30... Ne4 {[%clk 0:01:25.5]} 31. dxe4 {[%clk
0:00:02.3]} 31... Qg5+ {[%clk 0:01:25]} 32. Bg4 {[%clk 0:00:02]} 32... Rxg4+
{[%clk 0:01:24.8]} 0-1

[Event "Early-Titled-Tuesday-Blitz-February-13-2024"]
[Site "Chess.com"]
[Date "2024.02.13"]
[Round "1"]
[White "suspiciumchess"]
[Black "LikeWater"]
[Result "0-1"]
[WhiteElo "2423"]
[BlackElo "2762"]
[TimeControl "180+1"]
[EndTime "8:06:16 PST"]
[Termination "LikeWater won on time"]

1. d4 {[%clk 0:02:52.8]} 1... Nf6 {[%clk 0:03:00.5]} 2. c4 {[%clk 0:02:51.6]}
2... e6 {[%clk 0:03:01.4]} 3. g3 {[%clk 0:02:51.7]} 3... c5 {[%clk 0:03:02.3]}
4. d5 {[%clk 0:02:52.1]} 4... exd5 {[%clk 0:03:03.2]} 5. cxd5 {[%clk 0:02:53]}
5... d6 {[%clk 0:03:04.1]} 6. Nc3 {[%clk 0:02:53.5]} 6... g6 {[%clk 0:03:05]} 7.
Bg2 {[%clk 0:02:54.2]} 7... Bg7 {[%clk 0:03:05.9]} 8. Nf3 {[%clk 0:02:55.1]}
8... O-O {[%clk 0:03:06.8]} 9. O-O {[%clk 0:02:54.6]} 9... a6 {[%clk 0:03:07.7]}
10. a4 {[%clk 0:02:54.2]} 10... Nbd7 {[%clk 0:03:08.6]} 11. Re1 {[%clk
0:02:54.1]} 11... Re8 {[%clk 0:03:08.7]} 12. h3 {[%clk 0:02:52.2]} 12... Ne4
{[%clk 0:03:04.6]} 13. Nxe4 {[%clk 0:02:50.3]} 13... Rxe4 {[%clk 0:03:05.5]} 14.
Qc2 {[%clk 0:02:49.6]} 14... Rb4 {[%clk 0:03:02]} 15. Nd2 {[%clk 0:02:39.3]}
15... Ne5 {[%clk 0:02:53.2]} 16. f4 {[%clk 0:02:38.4]} 16... Nd7 {[%clk
0:02:41.3]} 17. Nc4 {[%clk 0:02:36.1]} 17... Nb6 {[%clk 0:02:36.4]} 18. Ne3
{[%clk 0:02:12.9]} 18... Qe7 {[%clk 0:02:31.3]} 19. a5 {[%clk 0:02:10.1]} 19...
Bd4 {[%clk 0:02:28.3]} 20. axb6 {[%clk 0:01:40.1]} 20... Bf5 {[%clk 0:02:28.7]}
21. Qd2 {[%clk 0:01:30.3]} 21... Rxb2 {[%clk 0:02:28.9]} 22. Qxb2 {[%clk
0:01:07]} 22... Bxb2 {[%clk 0:02:26.5]} 23. Bxb2 {[%clk 0:01:07.9]} 23... Qxe3+
{[%clk 0:02:26.7]} 24. Kh2 {[%clk 0:01:08.8]} 24... Qf2 {[%clk 0:02:21.3]} 25.
e4 {[%clk 0:00:26.7]} 25... Bxe4 {[%clk 0:02:21.2]} 26. Rxe4 {[%clk 0:00:27.3]}
26... Qxb2 {[%clk 0:02:21.6]} 27. Rae1 {[%clk 0:00:28.1]} 27... Qxb6 {[%clk
0:02:21.9]} 28. h4 {[%clk 0:00:26.2]} 28... h5 {[%clk 0:02:21.3]} 29. f5 {[%clk
0:00:25.7]} 29... Rf8 {[%clk 0:02:11.7]} 30. Bh3 {[%clk 0:00:22.1]} 30... Qb3
{[%clk 0:02:07.3]} 31. R1e2 {[%clk 0:00:15.8]} 31... a5 {[%clk 0:02:04.2]} 32.
Rf4 {[%clk 0:00:15.5]} 32... Qd3 {[%clk 0:01:56.8]} 33. Ref2 {[%clk 0:00:15.5]}
33... Kg7 {[%clk 0:01:34.1]} 0-1

[Event "Early-Titled-Tuesday-Blitz-February-13-2024"]
[Site "Chess.com"]
[Date "2024.02.13"]
[Round "1"]
[White "Jamal-Jamal-Jamal"]
[Black "Mikasinski"]
[Result "0-1"]
[WhiteElo "2334"]
[BlackElo "2665"]
[TimeControl "180+1"]
[EndTime "8:06:18 PST"]
[Termination "Mikasinski won on time"]

1. e4 {[%clk 0:02:59.3]} 1... c5 {[%clk 0:02:58.4]} 2. Nf3 {[%clk 0:02:55.5]}
2... d6 {[%clk 0:02:58.6]} 3. d4 {[%clk 0:02:55.1]} 3... cxd4 {[%clk 0:02:59.5]}
4. Qxd4 {[%clk 0:02:55.7]} 4... a6 {[%clk 0:02:59.4]} 5. Be2 {[%clk 0:02:54]}
5... Nc6 {[%clk 0:02:59.6]} 6. Qe3 {[%clk 0:02:54.3]} 6... g6 {[%clk 0:02:59.5]}
7. c4 {[%clk 0:02:53.1]} 7... Bg7 {[%clk 0:02:59.6]} 8. O-O {[%clk 0:02:52.6]}
8... Nf6 {[%clk 0:03:00]} 9. h3 {[%clk 0:02:52.1]} 9... O-O {[%clk 0:02:59.8]}
10. Rd1 {[%clk 0:02:51.8]} 10... Qa5 {[%clk 0:02:59]} 11. Nc3 {[%clk 0:02:48.3]}
11... Be6 {[%clk 0:02:59]} 12. Rb1 {[%clk 0:02:45.3]} 12... Rac8 {[%clk
0:02:57.1]} 13. Nd5 {[%clk 0:02:35.6]} 13... Nxe4 {[%clk 0:02:38.7]} 14. b4
{[%clk 0:02:20.6]} 14... Qxa2 {[%clk 0:02:33.8]} 15. Qxe4 {[%clk 0:01:44.3]}
15... Bf5 {[%clk 0:02:33.2]} 16. Nxe7+ {[%clk 0:01:44.4]} 16... Nxe7 {[%clk
0:02:29.8]} 17. Qxe7 {[%clk 0:01:45.3]} 17... Qxb1 {[%clk 0:02:25.1]} 18. Bf4
{[%clk 0:01:18.8]} 18... Qxb4 {[%clk 0:02:12.1]} 19. Bxd6 {[%clk 0:01:17.6]}
19... Qb3 {[%clk 0:02:08.9]} 20. Nd4 {[%clk 0:01:09.7]} 20... Bxd4 {[%clk
0:01:55]} 21. Rxd4 {[%clk 0:01:10.6]} 21... Rfe8 {[%clk 0:01:54.1]} 22. Qg5
{[%clk 0:00:19.7]} 22... Rxe2 {[%clk 0:01:52.3]} 23. Rf4 {[%clk 0:00:18.4]}
23... Qd1+ {[%clk 0:01:48.7]} 24. Kh2 {[%clk 0:00:18.2]} 24... Qxd6 {[%clk
0:01:48.1]} 25. g3 {[%clk 0:00:17]} 25... Qd2 {[%clk 0:01:12.3]} 26. Kg1 {[%clk
0:00:03.9]} 26... Rxc4 {[%clk 0:01:03.9]} 0-1

[Event "Early-Titled-Tuesday-Blitz-February-13-2024"]
[Site "Chess.com"]
[Date "2024.02.13"]
[Round "1"]
[White "GrumbleBruno"]
[Black "AlexeiShirov"]
[Result "0-1"]
[WhiteElo "2463"]
[BlackElo "2829"]
[TimeControl "180+1"]
[EndTime "8:06:19 PST"]
[Termination "AlexeiShirov won by resignation"]

1. e4 {[%clk 0:03:00.9]} 1... e5 {[%clk 0:02:59.5]} 2. Nf3 {[%clk 0:03:00.3]}
2... Nc6 {[%clk 0:02:59.7]} 3. Bb5 {[%clk 0:03:00.5]} 3... a6 {[%clk 0:02:58.3]}
4. Ba4 {[%clk 0:03:00.7]} 4... Nf6 {[%clk 0:02:57.9]} 5. d4 {[%clk 0:03:01]}
5... Nxd4 {[%clk 0:02:51.7]} 6. Nxd4 {[%clk 0:02:58.4]} 6... exd4 {[%clk
0:02:50.5]} 7. O-O {[%clk 0:02:55.2]} 7... Be7 {[%clk 0:02:36.7]} 8. e5 {[%clk
0:02:50.7]} 8... Ne4 {[%clk 0:02:35]} 9. Qg4 {[%clk 0:02:41.9]} 9... Ng5 {[%clk
0:02:24.6]} 10. f4 {[%clk 0:02:37]} 10... h5 {[%clk 0:02:05.9]} 11. Qe2 {[%clk
0:02:32.5]} 11... Ne6 {[%clk 0:01:48]} 12. f5 {[%clk 0:02:26.6]} 12... Nc5
{[%clk 0:01:41.9]} 13. Bb3 {[%clk 0:02:03.1]} 13... d5 {[%clk 0:01:35.1]} 14. f6
{[%clk 0:02:00.4]} 14... Bf8 {[%clk 0:01:34.6]} 15. Bg5 {[%clk 0:01:56.6]} 15...
Qd7 {[%clk 0:01:33.9]} 16. Nd2 {[%clk 0:01:50.2]} 16... Qg4 {[%clk 0:01:33]} 17.
Nf3 {[%clk 0:01:46.3]} 17... Be6 {[%clk 0:01:32.1]} 18. h3 {[%clk 0:01:43.8]}
18... Qe4 {[%clk 0:01:31.5]} 19. Qd2 {[%clk 0:01:41.9]} 19... d3 {[%clk
0:01:29.7]} 20. Rae1 {[%clk 0:01:35.2]} 20... Qg6 {[%clk 0:01:29.4]} 21. Re3
{[%clk 0:01:11.7]} 21... Ne4 {[%clk 0:01:25.5]} 22. Rxe4 {[%clk 0:01:01]} 22...
Qxe4 {[%clk 0:01:18.2]} 23. Re1 {[%clk 0:00:42.5]} 23... Qg6 {[%clk 0:01:06.5]}
24. cxd3 {[%clk 0:00:37.6]} 24... O-O-O {[%clk 0:01:02.3]} 25. Nd4 {[%clk
0:00:30.7]} 25... Bc5 {[%clk 0:00:55.9]} 26. Be3 {[%clk 0:00:22.8]} 26... gxf6
{[%clk 0:00:55.3]} 27. exf6 {[%clk 0:00:22.2]} 27... Qxf6 {[%clk 0:00:52.5]} 28.
Nxe6 {[%clk 0:00:22.1]} 28... Bxe3+ {[%clk 0:00:52.3]} 29. Rxe3 {[%clk
0:00:22.2]} 29... fxe6 {[%clk 0:00:52.3]} 30. Rf3 {[%clk 0:00:22.4]} 30... Qd4+
{[%clk 0:00:51.4]} 31. Kh1 {[%clk 0:00:21.3]} 31... Rdf8 {[%clk 0:00:50.6]} 0-1

[Event "Early-Titled-Tuesday-Blitz-February-13-2024"]
[Site "Chess.com"]
[Date "2024.02.13"]
[Round "1"]
[White "rockstar0902"]
[Black "treadstone_71"]
[Result "0-1"]
[WhiteElo "2605"]
[BlackElo "2285"]
[TimeControl "180+1"]
[EndTime "8:06:21 PST"]
[Termination "treadstone_71 won by resignation"]

1. d4 {[%clk 0:03:00]} 1... Nf6 {[%clk 0:02:59.5]} 2. Nc3 {[%clk 0:02:59.7]}
2... d5 {[%clk 0:02:58.9]} 3. Bf4 {[%clk 0:02:58.8]} 3... g6 {[%clk 0:02:59.3]}
4. e3 {[%clk 0:02:58.1]} 4... Bg7 {[%clk 0:02:59.4]} 5. h4 {[%clk 0:02:58.5]}
5... h5 {[%clk 0:02:59.2]} 6. Nf3 {[%clk 0:02:52.4]} 6... O-O {[%clk 0:02:58.9]}
7. Ne5 {[%clk 0:02:50.6]} 7... c5 {[%clk 0:02:57.6]} 8. f3 {[%clk 0:02:48.3]}
8... Qa5 {[%clk 0:02:45.3]} 9. Qd2 {[%clk 0:02:47.5]} 9... Nc6 {[%clk
0:02:44.9]} 10. Be2 {[%clk 0:02:42.1]} 10... cxd4 {[%clk 0:02:10.5]} 11. exd4
{[%clk 0:02:43]} 11... Nd7 {[%clk 0:02:10.1]} 12. g4 {[%clk 0:02:19.5]} 12...
Ndxe5 {[%clk 0:01:59.2]} 13. dxe5 {[%clk 0:02:19.2]} 13... d4 {[%clk 0:01:50.4]}
14. Nb5 {[%clk 0:01:58.2]} 14... Qxd2+ {[%clk 0:01:48.1]} 15. Bxd2 {[%clk
0:01:59.1]} 15... hxg4 {[%clk 0:01:35.6]} 16. fxg4 {[%clk 0:02:00]} 16... Nxe5
{[%clk 0:01:33.8]} 17. Rg1 {[%clk 0:01:51.3]} 17... Bd7 {[%clk 0:01:16.5]} 18.
Nxd4 {[%clk 0:01:48]} 18... Nxg4 {[%clk 0:01:15.2]} 19. Bxg4 {[%clk 0:01:47.6]}
19... Bxd4 {[%clk 0:01:13.9]} 20. Bxd7 {[%clk 0:01:37.9]} 20... Bxg1 {[%clk
0:01:12.5]} 21. O-O-O {[%clk 0:01:38.8]} 21... Rfd8 {[%clk 0:00:55]} 22. Bb5
{[%clk 0:01:31.5]} 22... Bh2 {[%clk 0:00:37]} 23. Rh1 {[%clk 0:01:21.5]} 23...
Be5 {[%clk 0:00:36.1]} 24. h5 {[%clk 0:01:20.9]} 24... gxh5 {[%clk 0:00:30]} 25.
Bd3 {[%clk 0:01:12.3]} 25... Rxd3 {[%clk 0:00:23.9]} 26. cxd3 {[%clk 0:01:11.3]}
26... Rc8+ {[%clk 0:00:24]} 27. Kb1 {[%clk 0:01:11.1]} 27... Bf6 {[%clk
0:00:20.4]} 28. Rxh5 {[%clk 0:01:10.6]} 28... b6 {[%clk 0:00:20.1]} 29. a4
{[%clk 0:01:07.7]} 29... Rc5 {[%clk 0:00:20]} 30. Rxc5 {[%clk 0:01:03.3]} 30...
bxc5 {[%clk 0:00:20.9]} 31. Be3 {[%clk 0:01:03.7]} 31... Bd4 {[%clk 0:00:16.8]}
32. Bxd4 {[%clk 0:01:03.9]} 32... cxd4 {[%clk 0:00:17.7]} 33. b4 {[%clk
0:01:04.5]} 33... Kf8 {[%clk 0:00:18.2]} 34. b5 {[%clk 0:01:04.2]} 34... Ke8
{[%clk 0:00:18.7]} 35. a5 {[%clk 0:01:04.5]} 35... Kd7 {[%clk 0:00:19.3]} 36. b6
{[%clk 0:01:02]} 36... axb6 {[%clk 0:00:18.9]} 0-1

[Event "Early-Titled-Tuesday-Blitz-February-13-2024"]
[Site "Chess.com"]
[Date "2024.02.13"]
[Round "1"]
[White "AryanTari"]
[Black "MaxLeto"]
[Result "1-0"]
[WhiteElo "2922"]
[BlackElo "2509"]
[TimeControl "180+1"]
[EndTime "8:06:24 PST"]
[Termination "AryanTari won on time"]

1. d4 {[%clk 0:03:00.9]} 1... d5 {[%clk 0:02:58.7]} 2. Bf4 {[%clk 0:03:00]} 2...
Nf6 {[%clk 0:02:58]} 3. e3 {[%clk 0:02:59.3]} 3... c5 {[%clk 0:02:58.4]} 4. dxc5
{[%clk 0:02:55.8]} 4... Nc6 {[%clk 0:02:56.6]} 5. Bb5 {[%clk 0:02:50]} 5... e6
{[%clk 0:02:50.8]} 6. b4 {[%clk 0:02:48]} 6... a5 {[%clk 0:02:49.2]} 7. c3
{[%clk 0:02:47.3]} 7... Bd7 {[%clk 0:02:46.9]} 8. a4 {[%clk 0:02:33.1]} 8...
axb4 {[%clk 0:02:44.1]} 9. Bxc6 {[%clk 0:02:33.1]} 9... Bxc6 {[%clk 0:02:22.4]}
10. cxb4 {[%clk 0:02:32.5]} 10... b6 {[%clk 0:02:19.1]} 11. Nd2 {[%clk
0:02:06.8]} 11... bxc5 {[%clk 0:02:15.5]} 12. b5 {[%clk 0:02:07.3]} 12... Bb7
{[%clk 0:02:10]} 13. Ngf3 {[%clk 0:02:07.6]} 13... Be7 {[%clk 0:01:58.4]} 14.
O-O {[%clk 0:02:07.3]} 14... O-O {[%clk 0:01:59.1]} 15. Qc2 {[%clk 0:02:05.6]}
15... Nd7 {[%clk 0:01:50.4]} 16. Rfd1 {[%clk 0:01:59.4]} 16... f6 {[%clk
0:01:47.7]} 17. e4 {[%clk 0:01:55.8]} 17... e5 {[%clk 0:01:41.6]} 18. Bg3 {[%clk
0:01:49.6]} 18... d4 {[%clk 0:01:23.9]} 19. Nc4 {[%clk 0:01:49.4]} 19... Nb6
{[%clk 0:01:22.6]} 20. Nfd2 {[%clk 0:01:45.2]} 20... Bc8 {[%clk 0:01:12.2]} 21.
a5 {[%clk 0:01:43.2]} 21... Nxc4 {[%clk 0:01:09.6]} 22. Nxc4 {[%clk 0:01:36.4]}
22... Be6 {[%clk 0:01:06.6]} 23. a6 {[%clk 0:01:27.6]} 23... Kh8 {[%clk
0:00:51.9]} 24. a7 {[%clk 0:01:27.8]} 24... Qc7 {[%clk 0:00:33.6]} 25. Ra6
{[%clk 0:01:21.9]} 25... Bc8 {[%clk 0:00:17.1]} 26. b6 {[%clk 0:01:22.3]} 26...
Qb7 {[%clk 0:00:15.1]} 27. Ra3 {[%clk 0:01:13.8]} 27... Be6 {[%clk 0:00:15.2]}
28. Rb1 {[%clk 0:01:11.7]} 28... Bxc4 {[%clk 0:00:13.2]} 29. Qxc4 {[%clk
0:01:12.6]} 29... Rfc8 {[%clk 0:00:12.9]} 30. f3 {[%clk 0:01:05.4]} 30... Rc6
{[%clk 0:00:12.2]} 31. Qa6 {[%clk 0:01:05.7]} 31... Qxa6 {[%clk 0:00:01.7]} 32.
Rxa6 {[%clk 0:01:06.6]} 32... c4 {[%clk 0:00:01.3]} 33. b7 {[%clk 0:01:05.9]}
1-0